bitfinex/quotes_BTCUSD_20250829
["timestamp","ask_amount","ask_price","bid_price","bid_amount"]
[1756505662008,7.01919008,108490.0,108480.0,1e-08]
[1756505662229,7.01824008,108490.0,108480.0,1e-08]
[1756505662443,7.01821428,108490.0,108480.0,1e-08]
[1756505662704,6.58868926,108490.0,108480.0,1e-08]
[1756505666067,6.58868415,108490.0,108480.0,1e-08]
[1756505667985,6.43236415,108490.0,108480.0,0.00519001]
[1756505668191,6.58872415,108490.0,108480.0,0.00519001]
[1756505668597,6.58872415,108490.0,108480.0,1e-08]
[1756505669596,6.58872415,108490.0,108480.0,0.00306001]
[1756505671619,6.58872415,108490.0,108480.0,1e-08]
[1756505673087,6.57147182,108490.0,108480.0,1e-08]
[1756505673318,6.58873015,108490.0,108480.0,1e-08]
[1756505674385,6.59520286,108490.0,108480.0,1e-08]
[1756505674587,6.58873015,108490.0,108480.0,1e-08]
[1756505675351,6.59520335,108490.0,108480.0,1e-08]
[1756505676392,6.59520397,108490.0,108480.0,1e-08]
[1756505677619,6.59520397,108490.0,108480.0,0.00306001]
[1756505679216,6.61509898,108490.0,108480.0,0.00306001]
[1756505682306,6.61798473,108490.0,108480.0,0.00306001]
[1756505683602,6.6007264,108490.0,108480.0,0.00306001]
[1756505683938,6.61802072,108490.0,108480.0,0.00306001]
[1756505685498,6.61802072,108490.0,108480.0,1e-08]
[1756505685690,6.61802072,108490.0,108480.0,0.00306001]
[1756505693487,6.6074315,108490.0,108480.0,0.00306001]
[1756505694080,6.6074315,108490.0,108480.0,0.00515001]
[1756505694308,6.59806353,108490.0,108480.0,0.00515001]
[1756505694497,6.60746959,108490.0,108480.0,0.00515001]
[1756505694911,6.60746961,108490.0,108480.0,0.00515001]
[1756505696942,6.60746961,108490.0,108480.0,0.00306001]
[1756505697959,6.60746995,108490.0,108480.0,0.00306001]
[1756505698800,6.60746995,108490.0,108480.0,1e-08]
[1756505699001,6.60746995,108490.0,108480.0,0.00293001]
[1756505700308,6.60746995,108490.0,108480.0,0.00502001]
[1756505700498,6.60746995,108490.0,108480.0,0.00293001]
[1756505700902,6.60746965,108490.0,108480.0,0.00293001]
[1756505703851,6.60746993,108490.0,108480.0,0.00293001]
[1756505709259,6.6075194,108490.0,108480.0,0.00293001]
[1756505710987,6.6783994,108490.0,108480.0,0.00293001]
[1756505711647,5.66298936,108490.0,108480.0,0.00502001]
[1756505711867,6.6780394,108490.0,108480.0,0.00502001]
[1756505712584,6.5220394,108490.0,108480.0,0.00502001]
[1756505712783,6.6779994,108490.0,108480.0,0.00502001]
[1756505712991,6.5220394,108490.0,108480.0,0.00502001]
[1756505713255,6.6781194,108490.0,108480.0,0.00502001]
[1756505714677,6.67811716,108490.0,108480.0,0.00502001]
[1756505715954,6.67811716,108490.0,108480.0,0.00293001]
[1756505719131,6.67811716,108490.0,108480.0,0.00502001]
[1756505719306,6.67162508,108490.0,108480.0,0.00502001]
[1756505721522,6.66873931,108490.0,108480.0,0.00502001]
[1756505721698,6.67162507,108490.0,108480.0,0.00502001]
[1756505723407,6.67162507,108490.0,108480.0,0.00293001]
[1756505725363,6.67162541,108490.0,108480.0,0.00293001]
[1756505729470,6.34221463,108490.0,108480.0,0.00293001]
[1756505730628,6.34221463,108490.0,108480.0,0.00500001]
[1756505732191,6.34221463,108490.0,108480.0,1e-08]
[1756505732596,6.34221463,108490.0,108480.0,0.00298001]
[1756505735718,6.3422155,108490.0,108480.0,0.00298001]
[1756505736577,5.32708546,108490.0,108480.0,0.00505001]
[1756505736901,6.3417755,108490.0,108480.0,0.00505001]
[1756505739239,6.32183114,108490.0,108480.0,0.00505001]
[1756505739456,6.34177638,108490.0,108480.0,0.00505001]
[1756505739878,6.18613638,108490.0,108480.0,0.00505001]
[1756505740121,6.34173638,108490.0,108480.0,0.00505001]
[1756505740970,6.68173638,108490.0,108480.0,0.00505001]
[1756505742232,6.68165638,108490.0,108480.0,0.00505001]
[1756505745895,6.68165638,108490.0,108480.0,0.00298001]
[1756505746100,6.68165638,108490.0,108480.0,1e-08]
[1756505746244,6.66145706,108490.0,108480.0,0.00298001]
[1756505746451,6.6816572,108490.0,108480.0,0.00298001]
[1756505749787,6.68165722,108490.0,108480.0,0.00298001]
[1756505753172,6.68165722,108490.0,108480.0,0.00502001]
[1756505756522,6.66434282,108490.0,108480.0,0.00502001]
[1756505756726,6.68165734,108490.0,108480.0,0.00502001]
[1756505760315,6.68161734,108490.0,108480.0,0.00502001]
[1756505761669,6.68161734,108490.0,108480.0,0.00298001]
[1756505762783,6.6816174,108490.0,108480.0,0.00298001]
[1756505763578,6.6816174,108490.0,108480.0,0.00502001]
[1756505764175,6.5261374,108490.0,108480.0,0.00502001]
[1756505764553,6.6816174,108490.0,108480.0,0.00502001]
[1756505766205,6.67873164,108490.0,108480.0,0.00502001]
[1756505766427,6.68161718,108490.0,108480.0,0.00502001]
[1756505767470,6.68161714,108490.0,108480.0,0.00502001]
[1756505770241,5.8225671,108490.0,108480.0,0.00502001]
[1756505770449,6.68161714,108490.0,108480.0,0.00502001]
[1756505776168,6.68161714,108490.0,108480.0,0.00298001]
[1756505776907,6.67873123,108490.0,108480.0,0.00298001]
[1756505777114,6.68161699,108490.0,108480.0,0.00298001]
[1756505777377,6.68161699,108490.0,108480.0,0.00502001]
[1756505777679,6.66430282,108490.0,108480.0,0.00502001]
[1756505777885,6.68161628,108490.0,108480.0,0.00502001]
[1756505780283,5.82256624,108490.0,108480.0,0.00502001]
[1756505780488,6.68161628,108490.0,108480.0,0.00502001]
[1756505782834,6.68161628,108490.0,108480.0,0.00298001]
[1756505783314,6.68161628,108490.0,108480.0,0.00508001]
[1756505787422,6.67873052,108490.0,108480.0,0.00508001]
[1756505787634,6.68161284,108490.0,108480.0,0.00508001]
[1756505788412,6.6816128,108490.0,108480.0,0.00508001]
[1756505792421,6.6815728,108490.0,108480.0,0.00508001]
[1756505794237,6.5261328,108490.0,108480.0,0.00508001]
[1756505794456,1.24916208,108490.0,108480.0,0.00508001]
[1756505794695,1.22921684,108490.0,108480.0,0.00508001]
[1756505795641,0.57337182,108490.0,108480.0,0.00508001]
[1756505795872,0.8010268,108490.0,108480.0,0.00508001]
[1756505796087,1.1410268,108490.0,108480.0,0.00508001]
[1756505796981,0.55406178,108490.0,108480.0,0.00508001]
[1756505797194,1.1390268,108490.0,108480.0,0.00508001]
[1756505797614,1.1370268,108490.0,108480.0,0.00508001]
[1756505798767,1.1370268,108490.0,108480.0,8.001e-05]
[1756505800868,1.1370268,108490.0,108480.0,0.00325001]
[1756505808000,1.1389868,108490.0,108480.0,0.00325001]
[1756505808789,0.70946178,108490.0,108480.0,0.00325001]
[1756505808997,1.1389868,108490.0,108480.0,0.00325001]
[1756505809398,1.1370268,108490.0,108480.0,0.00325001]
[1756505810135,1.1369868,108490.0,108480.0,0.00325001]
[1756505812646,1.1369868,108490.0,108480.0,0.00304001]
[1756505812891,1.1390968,108490.0,108480.0,0.00304001]
[1756505813741,1.1390968,108490.0,108460.0,0.18937186]
[1756505813742,0.18438277,108470.0,108460.0,0.18937186]
[1756505813936,0.18438277,108470.0,108460.0,0.27766818]
[1756505814095,0.6138908,108480.0,108460.0,0.3680745]
[1756505814305,0.6138908,108480.0,108470.0,0.0906011]
[1756505814480,0.6416008,108480.0,108470.0,0.0927111]
[1756505815533,0.6416008,108480.0,108470.0,0.0956711]
[1756505816167,0.6416008,108480.0,108470.0,0.2520711]
[1756505816389,0.21207578,108480.0,108470.0,0.24976632]
[1756505816713,0.6416008,108480.0,108470.0,0.25076632]
[1756505819689,1.07112582,108480.0,108470.0,0.25076632]
[1756505821917,1.07112582,108480.0,108470.0,0.24780632]
[1756505821918,1.07323582,108480.0,108470.0,0.24780632]
[1756505822119,1.07620582,108480.0,108470.0,0.24780632]
[1756505822526,1.07323582,108480.0,108470.0,0.24780632]
[1756505823191,1.07620582,108480.0,108470.0,0.24780632]
[1756505825024,1.07323582,108480.0,108470.0,0.24780632]
[1756505826357,1.07112582,108480.0,108470.0,0.25076632]
[1756505826771,1.07323582,108480.0,108470.0,0.25076632]
[1756505826994,1.07323582,108480.0,108470.0,0.24780632]
[1756505828513,0.21207578,108480.0,108470.0,0.24780632]
[1756505828851,1.07323582,108480.0,108470.0,0.24780632]
[1756505829065,0.21418578,108480.0,108470.0,0.24780632]
[1756505829240,1.07323582,108480.0,108470.0,0.24780632]
[1756505829907,1.04341582,108480.0,108470.0,0.29755104]
[1756505830081,1.04552582,108480.0,108470.0,0.29755104]
[1756505832136,1.04341582,108480.0,108470.0,0.29755104]
[1756505832493,1.04552582,108480.0,108470.0,0.29755104]
[1756505834835,0.84321446,108480.0,108470.0,0.29755104]
[1756505836085,0.18647578,108480.0,108470.0,0.29755104]
[1756505836242,1.04552582,108480.0,108470.0,0.29755104]
[1756505836654,1.04552582,108480.0,108470.0,0.29459104]
[1756505836861,1.04341582,108480.0,108470.0,0.29755104]
[1756505838125,1.04552582,108480.0,108470.0,0.25076632]
[1756505838752,1.04341582,108480.0,108470.0,0.25076632]
[1756505839331,1.04545582,108480.0,108470.0,0.25076632]
[1756505839780,0.18640578,108480.0,108470.0,0.25076632]
[1756505839997,1.04545582,108480.0,108470.0,0.24780632]
[1756505845236,0.18640578,108480.0,108470.0,0.24780632]
[1756505845441,1.04545582,108480.0,108470.0,0.24780632]
[1756505846004,0.18640578,108480.0,108470.0,0.24780632]
[1756505846220,1.04545582,108480.0,108470.0,0.24780632]
[1756505849335,1.04545582,108480.0,108470.0,0.25079632]
[1756505849795,1.04341582,108480.0,108470.0,0.25079632]
[1756505850223,1.04545582,108480.0,108470.0,0.25079632]
[1756505851604,1.04545582,108480.0,108470.0,0.24780632]
[1756505852712,0.18640578,108480.0,108470.0,0.24780632]
[1756505852910,1.04545582,108480.0,108470.0,0.24780632]
[1756505853120,0.18640578,108480.0,108470.0,0.24780632]
[1756505853344,1.04545582,108480.0,108470.0,0.24780632]
[1756505855864,1.04848582,108480.0,108470.0,0.24569632]
[1756505856060,1.04545582,108480.0,108470.0,0.24778632]
[1756505859151,1.07316582,108480.0,108470.0,0.27549632]
[1756505863055,0.21411578,108480.0,108470.0,0.27848632]
[1756505863228,1.07316582,108480.0,108470.0,0.27848632]
[1756505863948,0.6436408,108480.0,108470.0,0.27848632]
[1756505864853,0.21411578,108480.0,108470.0,0.27848632]
[1756505865082,0.6436408,108480.0,108470.0,0.27848632]
[1756505866300,0.21411578,108480.0,108470.0,0.32527214]
[1756505866460,0.6436408,108480.0,108470.0,0.32527214]
[1756505867034,0.45927502,108480.0,108470.0,0.27549632]
[1756505867236,0.6436408,108480.0,108470.0,0.27549632]
[1756505867392,0.6436408,108480.0,108470.0,0.27848632]
[1756505867798,0.6436408,108480.0,108470.0,0.27549632]
[1756505868705,0.6436408,108480.0,108470.0,0.24778632]
[1756505869288,0.6436408,108480.0,108470.0,0.2614987]
[1756505870701,0.6436408,108480.0,108470.0,0.24778632]
[1756505871546,0.88880004,108480.0,108470.0,0.26872514]
[1756505871751,0.02771,108480.0,108470.0,0.45603791]
[1756505871932,0.42952502,108480.0,108470.0,0.45603791]
[1756505872282,0.42952502,108480.0,108470.0,0.54433423]
[1756505872676,0.22132162,108490.0,108470.0,0.57204223]
[1756505872974,0.6138908,108480.0,108470.0,0.57204223]
[1756505873606,0.18436578,108480.0,108470.0,0.57104223]
[1756505873819,0.6138908,108480.0,108470.0,0.57104223]
[1756505874324,0.18436578,108480.0,108470.0,0.57104223]
[1756505874687,0.6138908,108480.0,108470.0,0.57204223]
[1756505879082,0.6160508,108480.0,108470.0,0.57204223]
[1756505881289,0.6138908,108480.0,108470.0,0.57204223]
[1756505882078,4.741e-05,108490.0,108480.0,0.2053046]
[1756505882402,4.741e-05,108490.0,108480.0,0.88730226]
[1756505882611,4.741e-05,108490.0,108480.0,0.45777724]
[1756505882804,4.741e-05,108490.0,108480.0,0.48548224]
[1756505883814,0.42957243,108490.0,108480.0,0.48548224]
[1756505884230,0.42957243,108490.0,108480.0,0.48648224]
[1756505884952,0.42957243,108490.0,108480.0,0.48748224]
[1756505887487,4.741e-05,108490.0,108480.0,0.48748224]
[1756505893202,0.42957243,108490.0,108480.0,0.48748224]
[1756505894501,0.42957243,108490.0,108480.0,0.52962488]
[1756505897453,4.741e-05,108490.0,108480.0,0.52962488]
[1756505905795,0.42957243,108490.0,108480.0,0.68486488]
[1756505909836,4.741e-05,108490.0,108480.0,0.68486488]
[1756505910035,0.42957243,108490.0,108480.0,0.68486488]
[1756505913181,0.61603121,108490.0,108480.0,0.64272224]
[1756505913332,0.61392121,108490.0,108480.0,0.64272224]
[1756505913735,0.61603121,108490.0,108480.0,0.63979224]
[1756505914012,0.00215741,108490.0,108480.0,0.63979224]
[1756505914216,0.00215741,108490.0,108480.0,0.48455224]
[1756505914368,0.43168243,108490.0,108480.0,0.64279224]
[1756505916598,0.61603121,108490.0,108480.0,0.64279224]
[1756505917403,0.61603121,108490.0,108480.0,0.63983224]
[1756505917798,0.61603121,108490.0,108480.0,0.64283224]
[1756505919808,0.61928121,108490.0,108480.0,0.63776224]
[1756505920494,0.61928121,108490.0,108480.0,0.45339646]
[1756505920899,0.61603121,108490.0,108480.0,0.45545646]
[1756505921413,0.61603121,108490.0,108480.0,0.63982224]
[1756505922040,0.18650619,108490.0,108480.0,0.63982224]
[1756505922260,0.61603121,108490.0,108480.0,0.64282224]
[1756505922815,0.18650619,108490.0,108480.0,0.64282224]
[1756505923020,0.61603121,108490.0,108480.0,0.64282224]
[1756505923244,0.61603121,108490.0,108480.0,0.29811646]
[1756505923541,0.61928121,108490.0,108480.0,0.45347646]
[1756505928290,0.61603121,108490.0,108480.0,0.45853646]
[1756505928495,0.61603121,108490.0,108480.0,0.45553646]
[1756505930246,0.61603121,108490.0,108480.0,0.45877646]
[1756505930675,0.61603121,108490.0,108480.0,0.64314224]
[1756505930850,0.18439619,108490.0,108480.0,0.64314224]
[1756505931055,0.61392121,108490.0,108480.0,0.64314224]
[1756505931232,0.61598121,108490.0,108480.0,0.64314224]
[1756505935125,0.61598121,108490.0,108480.0,0.45877646]
[1756505942777,0.18645619,108490.0,108480.0,0.45877646]
[1756505943204,0.61598121,108490.0,108480.0,0.45877646]
[1756505943677,0.61598121,108490.0,108480.0,0.27717764]
[1756505943858,0.61922121,108490.0,108480.0,0.24947264]
[1756505944058,0.61922121,108490.0,108480.0,0.40471264]
[1756505944256,0.61922121,108490.0,108480.0,0.16117632]
[1756505944467,1.04874623,108490.0,108480.0,0.31641632]
[1756505944780,0.61922121,108490.0,108480.0,0.31641632]
[1756505946356,0.18443878,108490.0,108480.0,0.31641632]
[1756505946529,0.6139638,108490.0,108480.0,0.31641632]
[1756505946757,0.6139638,108490.0,108480.0,0.37842054]
[1756505948168,0.18443878,108490.0,108480.0,0.37842054]
[1756505948395,0.6139638,108490.0,108480.0,0.37842054]
[1756505949410,0.6139638,108490.0,108480.0,0.31641632]
[1756505954403,0.6139638,108490.0,108480.0,0.31965632]
[1756505955619,0.6139638,108490.0,108480.0,0.31641632]
[1756505955806,0.6139638,108490.0,108480.0,0.31965632]
[1756505966877,0.6139638,108490.0,108480.0,0.32174632]
[1756505969759,0.6139638,108490.0,108480.0,0.25086632]
[1756505974737,0.6139638,108490.0,108480.0,0.32174632]
[1756505979359,0.6139638,108490.0,108480.0,0.34945332]
[1756505987521,0.18434878,108490.0,108480.0,0.34945332]
[1756505987719,0.6138738,108490.0,108480.0,0.60011114]
[1756505988293,0.6138738,108490.0,108480.0,0.41574536]
[1756505988733,0.6138738,108490.0,108480.0,0.34945332]
[1756505989505,0.18434878,108490.0,108480.0,0.34945332]
[1756505989676,0.6139638,108490.0,108480.0,0.34945332]
[1756505989872,0.6138738,108490.0,108480.0,0.34945332]
[1756505990227,0.18434878,108490.0,108480.0,0.34945332]
[1756505990436,0.6138738,108490.0,108480.0,0.34945332]
[1756505992864,0.18434878,108490.0,108480.0,0.34945332]
[1756505993066,0.6138738,108490.0,108480.0,0.34945332]
[1756506001885,0.6138738,108490.0,108480.0,0.19421332]
[1756506002059,0.6138738,108490.0,108480.0,0.34937332]
[1756506027588,0.18434878,108490.0,108480.0,0.34937332]
[1756506027725,0.6138738,108490.0,108480.0,0.34937332]
[1756506029963,0.6139638,108490.0,108480.0,0.27841332]
[1756506030173,0.6139638,108490.0,108480.0,0.27632332]
[1756506030810,0.6139638,108490.0,108480.0,0.24861632]
[1756506031120,0.6139638,108490.0,108480.0,0.25060632]
[1756506034625,0.18443878,108490.0,108480.0,0.25060632]
[1756506034843,0.6139638,108490.0,108480.0,0.25060632]
[1756506036749,1.04348882,108490.0,108480.0,0.24861632]
[1756506036960,1.07119682,108490.0,108480.0,0.09029632]
[1756506037172,1.07119682,108490.0,108480.0,0.15704]
[1756506049271,0.45723302,108490.0,108480.0,0.15704]
[1756506049472,1.07110682,108490.0,108480.0,0.15704]
[1756506049929,1.07110682,108490.0,108480.0,0.16019]
[1756506053085,1.07110682,108490.0,108480.0,0.16214]
[1756506054096,0.21205678,108490.0,108480.0,0.16214]
[1756506054277,1.07110682,108490.0,108480.0,0.16214]
[1756506055513,1.07110682,108490.0,108480.0,0.16019]
[1756506061331,1.07110682,108490.0,108480.0,0.16214]
[1756506061831,1.07110682,108490.0,108480.0,0.16019]
[1756506064147,0.6415818,108490.0,108480.0,0.16214]
[1756506064659,0.027708,108490.0,108480.0,0.91087251]
[1756506064863,0.19354837,108500.0,108490.0,0.18434878]
[1756506065067,0.61385681,108500.0,108490.0,0.3486251]
[1756506065640,0.61385681,108500.0,108490.0,0.3763281]
[1756506066101,0.61485681,108500.0,108490.0,0.3763281]
[1756506066328,0.61485681,108500.0,108490.0,0.3773281]
[1756506066548,0.61485681,108500.0,108490.0,0.40273803]
[1756506068288,0.18533179,108500.0,108490.0,0.40273803]
[1756506068494,0.61485681,108500.0,108490.0,0.40273803]
[1756506069862,0.001,108500.0,108490.0,0.42367685]
[1756506071191,0.001,108500.0,108490.0,0.42267685]
[1756506071398,0.18433179,108500.0,108490.0,0.42467685]
[1756506071601,0.61385681,108500.0,108490.0,0.42467685]
[1756506071810,0.61485681,108500.0,108490.0,0.42467685]
[1756506072367,0.61385681,108500.0,108490.0,0.42467685]
[1756506076488,0.18433179,108500.0,108490.0,0.42467685]
[1756506076827,0.61385681,108500.0,108490.0,0.42467685]
[1756506080578,0.55923296,108500.0,108490.0,0.42467685]
[1756506084377,0.61385681,108500.0,108490.0,0.42467685]
[1756506087498,0.42952502,108500.0,108490.0,0.42467685]
[1756506087792,0.61385681,108500.0,108490.0,0.46628815]
[1756506090831,0.42952502,108500.0,108490.0,0.46628815]
[1756506091491,0.19353054,108510.0,108490.0,0.46628815]
[1756506091695,0.42952502,108500.0,108490.0,0.37484183]
[1756506091953,0.42952502,108500.0,108490.0,0.61797815]
[1756506092064,0.19353054,108510.0,108500.0,0.18433179]
[1756506092268,0.62305556,108510.0,108500.0,0.3560291]
[1756506092503,0.65074073,108520.0,108500.0,0.3580091]
[1756506092703,0.62303773,108520.0,108510.0,0.24861025]
[1756506092909,1.05256275,108520.0,108510.0,0.24630632]
[1756506093109,1.05256275,108520.0,108510.0,0.24313632]
[1756506093319,1.05256275,108520.0,108510.0,0.27083532]
[1756506093842,0.62303773,108520.0,108510.0,0.27083532]
[1756506095100,1.05256275,108520.0,108510.0,0.27083532]
[1756506095319,1.05456275,108520.0,108510.0,0.27083532]
[1756506096344,0.19551271,108520.0,108510.0,0.27083532]
[1756506096494,1.05456275,108520.0,108510.0,0.27083532]
[1756506098612,1.05456275,108520.0,108510.0,0.27400532]
[1756506099218,1.05456275,108520.0,108510.0,0.24630632]
[1756506100400,1.05456275,108520.0,108510.0,0.31516309]
[1756506100931,0.19551271,108520.0,108510.0,0.50145789]
[1756506101142,0.002,108520.0,108510.0,0.57233789]
[1756506101552,0.002,108520.0,108510.0,0.59327671]
[1756506102146,0.62311325,108530.0,108510.0,0.59327671]
[1756506102463,0.62311325,108530.0,108520.0,0.21071036]
[1756506102464,0.42952502,108530.0,108520.0,0.21071036]
[1756506102668,0.42952502,108530.0,108520.0,0.37876467]
[1756506103024,0.61886347,108540.0,108520.0,0.37876467]
[1756506103229,0.00496467,108540.0,108530.0,0.50238716]
[1756506103447,0.00496467,108540.0,108530.0,0.50436716]
[1756506103448,0.42952502,108540.0,108530.0,0.50436716]
[1756506103623,0.42952502,108540.0,108530.0,0.55461587]
[1756506103860,0.61378888,108540.0,108530.0,0.55461587]
[1756506104563,0.61378888,108540.0,108530.0,0.37033503]
[1756506104715,0.18426386,108540.0,108530.0,0.37133503]
[1756506104911,0.61478888,108540.0,108530.0,0.37133503]
[1756506105744,0.18526386,108540.0,108530.0,0.55561587]
[1756506105921,0.61478888,108540.0,108530.0,0.55561587]
[1756506107359,0.001,108540.0,108530.0,0.57655469]
[1756506107586,0.43052502,108540.0,108530.0,0.57655469]
[1756506110525,0.86005004,108540.0,108530.0,0.57655469]
[1756506110930,1.0443139,108540.0,108530.0,0.57655469]
[1756506111132,0.86005004,108540.0,108530.0,0.57655469]
[1756506112496,1.0443139,108540.0,108530.0,0.57655469]
[1756506113671,0.86005004,108540.0,108530.0,0.57655469]
[1756506114232,0.001,108540.0,108530.0,0.57655469]
[1756506114461,0.4328299,108540.0,108530.0,0.57655469]
[1756506114809,0.43052502,108540.0,108530.0,0.57655469]
[1756506117662,0.61478888,108540.0,108530.0,0.57655469]
[1756506118429,0.86005004,108540.0,108530.0,0.57655469]
[1756506119166,0.001,108540.0,108530.0,0.57655469]
[1756506119371,0.86005004,108540.0,108530.0,0.57655469]
[1756506119571,0.001,108540.0,108530.0,0.57655469]
[1756506119775,0.43052502,108540.0,108530.0,0.57655469]
[1756506119988,1.0443139,108540.0,108530.0,0.57655469]
[1756506121039,0.18526386,108540.0,108530.0,0.23453385]
[1756506121225,1.0443139,108540.0,108530.0,0.33679514]
[1756506122941,1.0443139,108540.0,108530.0,0.34000514]
[1756506125709,1.0443139,108540.0,108530.0,0.52625598]
[1756506125940,0.18526386,108540.0,108530.0,0.34197514]
[1756506126157,1.0443139,108540.0,108530.0,0.40961856]
[1756506127044,0.18526386,108540.0,108530.0,0.40961856]
[1756506127257,0.18526386,108540.0,108530.0,0.40764856]
[1756506127453,1.0443139,108540.0,108530.0,0.40764856]
[1756506127915,1.0443139,108540.0,108530.0,0.40961856]
[1756506129655,1.0443139,108540.0,108530.0,0.40764856]
[1756506129867,1.0443139,108540.0,108530.0,0.40961856]
[1756506130301,1.0443139,108540.0,108530.0,0.5938994]
[1756506130512,0.18526386,108540.0,108530.0,0.5938994]
[1756506130686,1.0443139,108540.0,108530.0,0.40961856]
[1756506131489,1.0443139,108540.0,108530.0,0.40764856]
[1756506131662,1.0443139,108540.0,108530.0,0.40961856]
[1756506132089,0.61478888,108540.0,108530.0,0.40961856]
[1756506132686,0.18526386,108540.0,108530.0,0.5938994]
[1756506133539,0.61478888,108540.0,108530.0,0.5938994]
[1756506134474,0.18526386,108540.0,108530.0,0.5938994]
[1756506134692,0.61478888,108540.0,108530.0,0.5938994]
[1756506135695,0.18526386,108540.0,108530.0,0.5938994]
[1756506136104,0.61478888,108540.0,108530.0,0.5938994]
[1756506137661,0.61478888,108540.0,108530.0,0.40961856]
[1756506142599,0.18526386,108540.0,108530.0,0.40961856]
[1756506142780,0.61478888,108540.0,108530.0,0.5938994]
[1756506142983,0.001,108540.0,108530.0,1.02342442]
[1756506143793,0.001,108540.0,108530.0,0.5938994]
[1756506143993,0.63183198,108550.0,108530.0,1.02342442]
[1756506144232,0.63183198,108550.0,108530.0,1.02121442]
[1756506144437,0.63183198,108550.0,108540.0,0.00294]
[1756506144636,0.63183198,108550.0,108540.0,0.00504]
[1756506145873,0.20230696,108550.0,108540.0,0.00704]
[1756506147171,0.63183198,108550.0,108540.0,0.00704]
[1756506149545,0.63183198,108550.0,108540.0,0.09533632]
[1756506150180,0.63183198,108550.0,108540.0,0.12689239]
[1756506150428,0.20230696,108550.0,108540.0,0.12689239]
[1756506150604,0.63183198,108550.0,108540.0,0.12689239]
[1756506150840,0.20230696,108550.0,108540.0,0.12689239]
[1756506151051,0.63183198,108550.0,108540.0,0.12689239]
[1756506152103,0.63183198,108550.0,108540.0,0.09533632]
[1756506154748,0.63183198,108550.0,108540.0,0.09323632]
[1756506157343,0.63183198,108550.0,108540.0,0.09533632]
[1756506159792,0.63183198,108550.0,108540.0,0.09323632]
[1756506163134,0.63183198,108550.0,108540.0,0.09533632]
[1756506163339,0.63183198,108550.0,108540.0,0.18363264]
[1756506166738,0.00884653,108550.0,108540.0,0.3678965]
[1756506166929,0.62261844,108550.0,108540.0,0.3678965]
[1756506167236,0.61377191,108550.0,108540.0,0.3678965]
[1756506167890,0.42952502,108550.0,108540.0,0.38883532]
[1756506168240,0.61377191,108550.0,108540.0,0.38883532]
[1756506169541,0.65965836,108560.0,108540.0,0.38883532]
[1756506169740,0.65965836,108560.0,108550.0,0.43266321]
[1756506169950,0.20243934,108560.0,108550.0,0.47802994]
[1756506170190,0.63196436,108560.0,108550.0,0.47802994]
[1756506171010,0.20243934,108560.0,108550.0,0.47802994]
[1756506171212,0.63196436,108560.0,108550.0,0.47802994]
[1756506171447,0.63296436,108560.0,108550.0,0.47802994]
[1756506172032,0.63296436,108560.0,108550.0,0.51984617]
[1756506172240,0.63196436,108560.0,108550.0,0.51984617]
[1756506173463,0.63296436,108560.0,108550.0,0.51984617]
[1756506175664,0.63296436,108560.0,108550.0,0.33559928]
[1756506176780,0.001,108560.0,108550.0,0.54078499]
[1756506176958,0.18522991,108560.0,108550.0,0.61162499]
[1756506177158,0.001,108560.0,108550.0,0.61162499]
[1756506178661,0.001,108560.0,108550.0,1.04115001]
[1756506179226,0.001,108560.0,108550.0,0.63931299]
[1756506179924,0.001,108560.0,108550.0,1.06883801]
[1756506180134,0.001,108560.0,108550.0,0.63931299]
[1756506185151,0.001,108560.0,108550.0,1.06883801]
[1756506189988,0.6228248,108570.0,108550.0,1.06883801]
[1756506189989,0.43848233,108570.0,108550.0,1.06883801]
[1756506190199,0.62272646,108570.0,108560.0,0.003]
[1756506190398,0.62272646,108570.0,108560.0,0.27749623]
[1756506190543,0.62272646,108570.0,108560.0,0.35757794]
[1756506191204,0.62472646,108570.0,108560.0,0.35757794]
[1756506191825,0.19520144,108570.0,108560.0,0.35757794]
[1756506191978,0.62472646,108570.0,108560.0,0.35757794]
[1756506192518,0.62272646,108570.0,108560.0,0.35757794]
[1756506192920,0.18524413,108570.0,108560.0,0.35757794]
[1756506193276,0.18424413,108570.0,108560.0,0.35757794]
[1756506193688,0.18424413,108570.0,108560.0,0.35857794]
[1756506193895,0.61376915,108570.0,108560.0,0.35857794]
[1756506194846,0.18424413,108570.0,108560.0,0.35857794]
[1756506195835,0.61376915,108570.0,108560.0,0.35857794]
[1756506196786,0.62282763,108570.0,108560.0,0.35857794]
[1756506198049,0.19330261,108570.0,108560.0,0.35857794]
[1756506201240,0.00905848,108570.0,108560.0,0.35857794]
[1756506201448,0.18419598,108580.0,108570.0,0.18421295]
[1756506201653,0.613721,108580.0,108570.0,0.50164269]
[1756506202817,0.614721,108580.0,108570.0,0.50164269]
[1756506204924,0.18519598,108580.0,108570.0,0.50164269]
[1756506205905,0.19423646,108580.0,108570.0,0.50164269]
[1756506206520,0.19423646,108580.0,108570.0,0.59342151]
[1756506207332,0.01004048,108580.0,108570.0,0.59342151]
[1756506207748,0.01234536,108580.0,108570.0,0.59342151]
[1756506208334,0.01234536,108580.0,108570.0,0.62110451]
[1756506211098,0.00330488,108580.0,108570.0,0.62110451]
[1756506211514,0.18750086,108580.0,108570.0,0.62110451]
[1756506211719,0.18519598,108580.0,108570.0,0.62110451]
[1756506214071,0.19415818,108580.0,108570.0,0.62110451]
[1756506214635,0.001,108580.0,108570.0,0.62110451]
[1756506215491,0.43052502,108580.0,108570.0,0.62110451]
[1756506216097,0.001,108580.0,108570.0,0.62110451]
[1756506216459,0.43052502,108580.0,108570.0,0.62110451]
[1756506217172,0.43052502,108580.0,108570.0,0.66287606]
[1756506217918,0.42957251,108580.0,108570.0,0.66387606]
[1756506218309,0.43057251,108580.0,108570.0,0.66387606]
[1756506218717,0.00104749,108580.0,108570.0,0.66387606]
[1756506219447,4.749e-05,108580.0,108570.0,0.66387606]
[1756506220904,0.00235237,108580.0,108570.0,0.66387606]
[1756506223460,0.43187739,108580.0,108570.0,0.66387606]
[1756506223666,0.42957251,108580.0,108570.0,0.66387606]
[1756506230893,4.749e-05,108580.0,108570.0,1.09340108]
[1756506231082,0.00235237,108580.0,108570.0,1.09340108]
[1756506231279,4.749e-05,108580.0,108570.0,1.09340108]
[1756506231655,4.749e-05,108580.0,108570.0,0.66387606]
[1756506232188,4.749e-05,108580.0,108570.0,1.09340108]
[1756506232376,4.749e-05,108580.0,108570.0,0.66387606]
[1756506232588,4.749e-05,108580.0,108570.0,1.09340108]
[1756506233022,4.749e-05,108580.0,108570.0,1.05162953]
[1756506234932,4.749e-05,108580.0,108570.0,1.20162953]
[1756506239070,4.749e-05,108580.0,108570.0,1.20062953]
[1756506239447,4.749e-05,108580.0,108570.0,1.20262953]
[1756506241385,4.749e-05,108580.0,108570.0,1.54262953]
[1756506243016,4.749e-05,108580.0,108570.0,1.55154361]
[1756506244423,4.749e-05,108580.0,108570.0,1.55058361]
[1756506244618,4.749e-05,108580.0,108570.0,1.39518361]
[1756506244818,4.749e-05,108580.0,108570.0,1.55054361]
[1756506245034,4.749e-05,108580.0,108570.0,1.39518361]
[1756506245179,4.749e-05,108580.0,108570.0,1.55054361]
[1756506252250,4.749e-05,108580.0,108570.0,1.59187524]
[1756506254062,0.24542279,108600.0,108590.0,0.18417902]